fUST/lending_fUST_20250210
["ID","MTS","AMOUNT","RATE_DAILY","PERIOD"]
[352536107,1739155857668,-3000.0,0.0001615,2]
[352536108,1739155857677,-3000.0,0.0001616,2]
[352536109,1739155857686,-749.12,0.00016164,2]
[352536110,1739155857695,-3000.0,0.0001617,2]
[352536111,1739155857704,-3000.0,0.0001618,2]
[352536112,1739155857714,-3000.0,0.0001619,2]
[352536113,1739155857726,-156.0,0.00016197,2]
[352536114,1739155857736,-2252.40227405,0.00016198,2]
[352536115,1739155857745,-263.602,0.00016199,2]
[352536116,1739155857754,-1971.0,0.00016199,2]
[352536117,1739155857763,-538.052,0.00016199,2]
[352536118,1739155857773,-2300.736,0.00016199,2]
[352536119,1739155857782,-247.0,0.00016199,2]
[352536120,1739155857792,-3000.0,0.000162,2]
[352536121,1739155857801,-3000.0,0.0001621,2]
[352536122,1739155857811,-151.0,0.0001621,2]
[352536123,1739155857820,-151.0,0.0001621,2]
[352536124,1739155857829,-151.481,0.0001621,2]
[352536125,1739155857839,-3000.0,0.0001622,2]
[352536126,1739155857921,-152.767831,0.0001622,2]
[352536127,1739155857931,-151.0,0.0001622,2]
[352536128,1739155857940,-1905.8922518,0.0001623,2]
[352536129,1739155858215,-379.85811021,0.00010958,2]
[352536130,1739155858224,-500.0,0.00010958,2]
[352536131,1739155858234,-151.0,0.00011,2]
[352536132,1739155858243,-500.0,0.00011095,2]
[352536133,1739155858252,-151.0,0.000111,2]
[352536134,1739155858261,-151.0,0.000112,2]
[352536135,1739155858271,-500.0,0.00011368,2]
[352536136,1739155858280,-151.0,0.000114,2]
[352536137,1739155858290,-151.0,0.000115,2]
[352536138,1739155858299,-6754.62707182,0.00011506,4]
[352536139,1739155858309,-151.0,0.000116,2]
[352536140,1739155858318,-151.0,0.000117,2]
[352536141,1739155858328,-151.0,0.000118,2]
[352536142,1739155858337,-151.0,0.00012,2]
[352536143,1739155858349,-151.0,0.000121,2]
[352536144,1739155858358,-414.019,0.00016199,2]
[352536145,1739155858367,-1094.1077482,0.0001623,2]
[352536146,1739155858376,-3000.0,0.0001624,2]
[352536147,1739155858386,-550.04250531,0.00016248,2]
[352536148,1739155858395,-3000.0,0.0001625,2]
[352536149,1739155858404,-3000.0,0.0001626,2]
[352536150,1739155858413,-3000.0,0.0001627,2]
[352536151,1739155858422,-3000.0,0.0001628,2]
[352536152,1739155858433,-3000.0,0.0001629,2]
[352536153,1739155858443,-3000.0,0.000163,2]
[352536154,1739155858453,-3000.0,0.0001631,2]
[352536155,1739155858462,-151.0,0.0001631,2]
[352536156,1739155858471,-151.0,0.0001631,2]
[352536157,1739155858482,-151.0,0.0001631,2]
[352536158,1739155858491,-151.30534,0.0001631,2]
[352536159,1739155858501,-151.0,0.0001631,2]
[352536160,1739155858511,-151.0,0.0001631,2]
[352536161,1739155858520,-3000.0,0.0001632,2]
[352536162,1739155858529,-3000.0,0.0001633,2]
[352536163,1739155858539,-3000.0,0.0001634,2]
[352536164,1739155858548,-3000.0,0.0001635,2]
[352536165,1739155858557,-151.0,0.0001635,2]
[352536166,1739155858566,-178.8941,0.0001635,2]
[352536167,1739155858575,-178.8941,0.0001635,2]
[352536168,1739155858585,-151.0,0.0001635,2]
[352536169,1739155858595,-151.277727,0.0001635,2]
[352536170,1739155858605,-3000.0,0.0001636,2]
[352536171,1739155858614,-3000.0,0.0001637,2]
[352536172,1739155858623,-3000.0,0.0001638,2]
[352536173,1739155858632,-3000.0,0.0001639,2]
[352536174,1739155858642,-800.0,0.00016399,2]
[352536175,1739155858651,-3000.0,0.000164,2]
[352536176,1739155858659,-3000.0,0.0001641,2]
[352536177,1739155858669,-3000.0,0.0001642,2]
[352536178,1739155858679,-3000.0,0.0001643,2]
[352536179,1739155858688,-500.0,0.00016438,2]
[352536180,1739155858697,-3000.0,0.0001644,2]
[352536181,1739155858706,-3000.0,0.0001645,2]
[352536182,1739155858715,-3000.0,0.0001646,2]
[352536183,1739155858725,-3000.0,0.0001647,2]
[352536184,1739155858735,-3000.0,0.0001648,2]
[352536185,1739155858745,-3000.0,0.0001649,2]
[352536186,1739155858754,-306.0,0.0001649,2]
[352536187,1739155858763,-2209.65568246,0.000165,2]
[352536188,1739155858775,-790.34431754,0.000165,2]
[352536189,1739155858784,-3000.0,0.0001651,2]
[352536190,1739155858794,-3000.0,0.0001652,2]
[352536191,1739155858803,-151.0,0.0001652,2]
[352536192,1739155858812,-151.0,0.0001652,2]
[352536193,1739155858821,-151.0,0.0001652,2]
[352536194,1739155858830,-3000.0,0.0001653,2]
[352536195,1739155858839,-600.72963552,0.00016532,2]
[352536196,1739155858849,-3000.0,0.0001654,2]
[352536197,1739155858859,-3000.0,0.0001655,2]
[352536198,1739155858867,-3000.0,0.0001656,2]
[352536199,1739155858877,-414.179208,0.0001656,2]
[352536200,1739155858886,-414.179208,0.0001656,2]
[352536201,1739155858895,-3000.0,0.0001657,2]
[352536202,1739155858904,-3705.877009,0.0001658,2]
[352536203,1739155858914,-550.04250531,0.00016665,2]
[352536204,1739155858923,-500.0,0.00016683,30]
[352536205,1739155858932,-2961.23575772,0.000167,2]
[352536206,1739155858942,-2638.16827814,0.000168,2]
[352536207,1739155859155,-662.06,0.00010958,2]
[352536208,1739155859164,-841.89,0.00010959,2]
[352536209,1739155859174,-662.06,0.00011095,2]
[352536210,1739155859183,-500.0,0.00011232,2]
[352536211,1739155859193,-662.06,0.00011232,2]
[352536212,1739155859202,-500.0,0.00011369,2]
[352536213,1739155859211,-662.06,0.00011369,2]
[352536214,1739155859221,-503.78939767,0.00011506,2]
[352536215,1739155859230,-662.06,0.00011506,2]
[352536216,1739155859239,-403.22506633,0.00011643,2]
[352536219,1739156414366,418.0,0.00014,30]
[352536220,1739156738136,-1201.59533489,0.00010369,2]
[352536221,1739156744092,-6508.31681041,0.00010369,2]
[352536222,1739156806086,-176.44026546,0.00010369,2]
[352536223,1739156835093,-634.22221894,0.00010369,2]
[352536224,1739156835114,-400.0,0.00010685,2]
[352536225,1739156835135,-175.31405828,0.00010858,2]
[352536226,1739156835157,-4824.97257228,0.000109,2]
[352536227,1739156854079,-173.47329669,0.000109,2]
[352536228,1739156893415,2630.0,8.003e-05,2]
[352536229,1739156950090,-1914.46675822,0.00010108,2]
[352536266,1739157032571,-64.03161358,0.00010108,2]
[352536268,1739157032581,-300.0,0.00010857,2]
[352536270,1739157032590,-164.70151806,0.00010858,2]
[352536271,1739157032599,-38032.19652877,0.00010858,2]
[352536272,1739157032608,-8855.31614003,0.000109,2]
[352536274,1739157032618,-164.70151804,0.00010904,2]
[352536275,1739157032627,-2791.85204737,0.00010923,2]
[352536276,1739157032636,-164.70151804,0.00010949,2]
[352536277,1739157032646,-500.0,0.00010957,2]
[352536278,1739157032656,-356.04919308,0.00010957,2]
[352536279,1739157032665,-500.0,0.00010957,2]
[352536280,1739157032674,-500.0,0.00010957,2]
[352536281,1739157032684,-500.0,0.00010957,2]
[352536282,1739157032693,-500.0,0.00010957,2]
[352536283,1739157032703,-500.0,0.00010957,2]
[352536284,1739157032712,-500.0,0.00010957,2]
[352536285,1739157032722,-500.0,0.00010957,2]
[352536286,1739157032731,-603.15685146,0.00010957,2]
[352536287,1739157032742,-500.0,0.00010958,2]
[352536288,1739157032751,-406.46435535,0.00010958,2]
[352536289,1739157032761,-500.81712246,0.00010958,2]
[352536290,1739157032770,-501.42280111,0.00010958,2]
[352536291,1739157032779,-383.02853692,0.00010958,2]
[352536292,1739157032788,-504.77411914,0.00010958,2]
[352536293,1739157032798,-500.0,0.00010958,2]
[352536294,1739157032809,-498.70071267,0.00010958,2]
[352536296,1739157032820,-501.10727482,0.00010958,2]
[352536298,1739157032829,-502.87430555,0.00010958,2]
[352536299,1739157032839,-501.26693529,0.00010958,2]
[352536300,1739157032848,-500.0,0.00010958,2]
[352536301,1739157032858,-500.0,0.00010958,2]
[352536302,1739157032867,-504.49628523,0.00010958,2]
[352536303,1739157032877,-505.77501235,0.00010958,2]
[352536304,1739157032888,-500.0,0.00010958,2]
[352536305,1739157032897,-500.0,0.00010958,2]
[352536306,1739157032907,-500.0,0.00010958,2]
[352536307,1739157032916,-500.0,0.00010958,2]
[352536308,1739157032926,-500.0,0.00010958,2]
[352536309,1739157032935,-500.0,0.00010958,2]
[352536310,1739157032948,-489.83304014,0.00010958,2]
[352536311,1739157032958,-504.5254991,0.00010958,2]
[352536312,1739157032968,-500.0,0.00010958,2]
[352536313,1739157032978,-500.64099591,0.00010958,2]
[352536314,1739157032988,-500.0,0.00010958,2]
[352536315,1739157032998,-503.37855634,0.00010958,2]
[352536316,1739157033008,-324.16805583,0.00010958,2]
[352536317,1739157033017,-502.37291652,0.00010958,2]
[352536318,1739157033027,-500.0,0.00010958,2]
[352536319,1739157033037,-500.0,0.00010958,2]
[352536320,1739157033047,-500.0,0.00010958,2]
[352536321,1739157033057,-500.0,0.00010958,2]
[352536322,1739157033068,-501.80530664,0.00010958,2]
[352536323,1739157033078,-376.09574499,0.00010958,2]
[352536324,1739157033088,-500.0,0.00010958,2]
[352536325,1739157033098,-500.0,0.00010958,2]
[352536326,1739157033108,-500.0,0.00010958,2]
[352536327,1739157033251,-500.71826023,0.00010958,2]
[352536328,1739157033262,-501.69670012,0.00010958,2]
[352536329,1739157033273,-500.0,0.00010958,2]
[352536330,1739157033283,-502.35121102,0.00010958,2]
[352536331,1739157033293,-504.25193345,0.00010958,2]
[352536332,1739157033303,-500.0,0.00010958,2]
[352536333,1739157033314,-500.0,0.00010958,2]
[352536334,1739157033324,-500.0,0.00010958,2]
[352536335,1739157033334,-500.0,0.00010958,2]
[352536336,1739157033344,-500.0,0.00010958,2]
[352536337,1739157033353,-501.44265298,0.00010958,2]
[352536338,1739157033363,-500.0,0.00010958,2]
[352536339,1739157033374,-504.78587933,0.00010958,2]
[352536340,1739157033383,-507.49249205,0.00010958,2]
[352536341,1739157033394,-500.0,0.00010958,2]
[352536342,1739157033404,-500.0,0.00010958,2]
[352536343,1739157033414,-162.54458147,0.00010958,2]
[352536344,1739157033424,-500.0,0.00010958,2]
[352536345,1739157033434,-500.73963493,0.00010958,2]
[352536346,1739157033444,-500.0,0.00010958,2]
[352536347,1739157033455,-500.0,0.00010958,2]
[352536348,1739157033465,-502.12138741,0.00010958,2]
[352536349,1739157033475,-500.0,0.00010958,2]
[352536350,1739157033484,-500.0,0.00010958,2]
[352536351,1739157033494,-500.0,0.00010958,2]
[352536352,1739157033504,-164.1138635,0.00010958,2]
[352536353,1739157033514,-515.65559927,0.00010958,2]
[352536354,1739157033523,-500.0,0.00010958,2]
[352536355,1739157033532,-500.73292926,0.00010958,2]
[352536356,1739157033542,-500.0,0.00010958,2]
[352536357,1739157033552,-500.0,0.00010958,2]
[352536358,1739157033562,-500.0,0.00010958,2]
[352536359,1739157033572,-500.0,0.00010958,2]
[352536360,1739157033581,-500.0,0.00010958,2]
[352536361,1739157033591,-500.0,0.00010958,2]
[352536362,1739157033600,-500.0,0.00010958,2]
[352536363,1739157033610,-501.16395815,0.00010958,2]
[352536364,1739157033619,-500.93698934,0.00010958,2]
[352536365,1739157033629,-500.0,0.00010958,2]
[352536366,1739157033639,-500.36683587,0.00010958,2]
[352536367,1739157033649,-500.0,0.00010958,2]
[352536368,1739157033658,-500.0,0.00010958,2]
[352536369,1739157033667,-500.0,0.00010958,2]
[352536370,1739157033678,-500.0,0.00010958,2]
[352536371,1739157033687,-500.0,0.00010958,2]
[352536372,1739157033697,-502.27327069,0.00010958,2]
[352536373,1739157033706,-500.0,0.00010958,2]
[352536374,1739157033715,-500.81485506,0.00010958,2]
[352536375,1739157033725,-500.98714355,0.00010958,2]
[352536376,1739157033735,-614.95135058,0.00010958,2]
[352536377,1739157033744,-500.46290791,0.00010958,2]
[352536378,1739157033759,-500.40579343,0.00010958,2]
[352536379,1739157033769,-500.0,0.00010958,2]
[352536380,1739157033779,-565.3864072,0.00010958,2]
[352536381,1739157033788,-500.0,0.00010958,2]
[352536382,1739157033798,-500.0,0.00010958,2]
[352536383,1739157033809,-500.0,0.00010958,2]
[352536384,1739157033820,-500.0,0.00010958,2]
[352536385,1739157033830,-500.0,0.00010958,2]
[352536386,1739157033840,-500.0,0.00010958,2]
[352536387,1739157033851,-500.5027542,0.00010958,2]
[352536388,1739157033861,-500.0,0.00010958,2]
[352536389,1739157033870,-297.6459192,0.00010958,2]
[352536390,1739157033880,-500.0,0.00010958,2]
[352536391,1739157033892,-500.0,0.00010958,2]
[352536392,1739157033903,-505.53541504,0.00010958,2]
[352536393,1739157033912,-504.48820847,0.00010958,2]
[352536394,1739157033923,-502.94557432,0.00010958,2]
[352536395,1739157033933,-500.0,0.00010958,2]
[352536396,1739157033943,-500.0,0.00010958,2]
[352536397,1739157033952,-501.98519877,0.00010958,2]
[352536398,1739157033962,-500.0,0.00010958,2]
[352536399,1739157033971,-500.0,0.00010958,2]
[352536400,1739157033981,-386.98733038,0.00010958,2]
[352536401,1739157033990,-501.17974086,0.00010958,2]
[352536402,1739157033999,-560.93588839,0.00010958,2]
[352536403,1739157034010,-501.44213993,0.00010958,2]
[352536404,1739157034020,-500.0,0.00010958,2]
[352536405,1739157034030,-564.74778755,0.00010958,2]
[352536406,1739157034040,-501.29385618,0.00010958,2]
[352536407,1739157034049,-500.0,0.00010958,2]
[352536408,1739157034059,-503.1824765,0.00010958,2]
[352536409,1739157034069,-500.58807975,0.00010958,2]
[352536410,1739157034079,-503.25814326,0.00010958,2]
[352536411,1739157034088,-500.0,0.00010958,2]
[352536412,1739157034098,-544.01928282,0.00010958,2]
[352536413,1739157034107,-500.0,0.00010958,2]
[352536414,1739157034117,-500.0,0.00010958,2]
[352536415,1739157034127,-500.0,0.00010958,2]
[352536416,1739157034137,-500.0,0.00010958,2]
[352536417,1739157034147,-500.0,0.00010958,2]
[352536418,1739157034156,-500.0,0.00010958,2]
[352536419,1739157034165,-500.0,0.00010958,2]
[352536420,1739157034175,-502.66568798,0.00010958,2]
[352536421,1739157034188,-500.0,0.00010958,2]
[352536422,1739157034198,-500.44914863,0.00010958,2]
[352536423,1739157034209,-500.0,0.00010958,2]
[352536424,1739157034219,-500.0,0.00010958,2]
[352536425,1739157034229,-500.64836572,0.00010958,2]
[352536426,1739157034239,-500.0,0.00010958,2]
[352536427,1739157034249,-500.0,0.00010958,2]
[352536428,1739157034260,-500.0,0.00010958,2]
[352536429,1739157034271,-504.99638995,0.00010958,2]
[352536430,1739157034281,-500.0,0.00010958,2]
[352536431,1739157034291,-504.87351085,0.00010958,2]
[352536432,1739157034302,-552.56,0.00010958,2]
[352536433,1739157034314,-503.75060664,0.00010958,2]
[352536434,1739157034324,-502.04291968,0.00010958,2]
[352536435,1739157034334,-500.0,0.00010958,2]
[352536436,1739157034345,-500.0,0.00010958,2]
[352536437,1739157034357,-500.65703874,0.00010958,2]
[352536438,1739157034369,-495.43878975,0.00010958,2]
[352536439,1739157034380,-500.64792118,0.00010958,2]
[352536440,1739157034392,-500.0,0.00010958,2]
[352536441,1739157034403,-505.17134647,0.00010958,2]
[352536442,1739157034415,-500.0,0.00010958,2]
[352536443,1739157034428,-500.57392581,0.00010958,2]
[352536444,1739157034439,-500.0,0.00010958,2]
[352536445,1739157034450,-504.71454761,0.00010958,2]
[352536446,1739157034461,-500.0,0.00010958,2]
[352536447,1739157034472,-500.0,0.00010958,2]
[352536448,1739157034483,-500.0,0.00010958,2]
[352536449,1739157034493,-500.0,0.00010958,2]
[352536450,1739157034504,-500.82862784,0.00010958,2]
[352536451,1739157034515,-500.0,0.00010958,2]
[352536452,1739157034527,-500.0,0.00010958,2]
[352536453,1739157034538,-500.0,0.00010958,2]
[352536454,1739157034550,-501.9392138,0.00010958,2]
[352536455,1739157034563,-500.0,0.00010958,2]
[352536456,1739157034575,-500.0,0.00010958,2]
[352536457,1739157034586,-502.16310251,0.00010958,2]
[352536458,1739157034598,-500.0,0.00010958,2]
[352536459,1739157034609,-500.97330887,0.00010958,2]
[352536460,1739157034621,-500.0,0.00010958,2]
[352536461,1739157034632,-501.12894358,0.00010958,2]
[352536462,1739157034643,-500.0,0.00010958,2]
[352536463,1739157034654,-500.0,0.00010958,2]
[352536464,1739157034665,-500.0,0.00010958,2]
[352536465,1739157034677,-500.0,0.00010958,2]
[352536466,1739157034687,-500.0,0.00010958,2]
[352536467,1739157034699,-500.0,0.00010958,2]
[352536468,1739157034709,-504.39833335,0.00010958,2]
[352536469,1739157034721,-500.0,0.00010958,2]
[352536470,1739157034733,-503.41827998,0.00010958,2]
[352536471,1739157034745,-500.0,0.00010958,2]
[352536472,1739157034755,-648.37,0.00010958,2]
[352536473,1739157034766,-500.0,0.00010958,2]
[352536474,1739157034777,-648.37,0.00010958,2]
[352536475,1739157034787,-648.37,0.00010958,2]
[352536476,1739157034798,-648.37,0.00010958,2]
[352536477,1739157034814,-648.37,0.00010958,2]
[352536478,1739157034825,-500.0,0.00010958,2]
[352536479,1739157034835,-648.37,0.00010958,2]
[352536480,1739157034847,-648.37,0.00010958,2]
[352536481,1739157034857,-648.37,0.00010958,2]
[352536482,1739157034868,-648.37,0.00010958,2]
[352536483,1739157034879,-648.37,0.00010958,2]
[352536484,1739157034890,-648.37,0.00010958,2]
[352536485,1739157034901,-648.37,0.00010958,2]
[352536486,1739157034912,-500.0,0.00010958,2]
[352536487,1739157034923,-648.37,0.00010958,2]
[352536488,1739157034933,-500.0,0.00010958,2]
[352536489,1739157034944,-500.0,0.00010958,2]
[352536490,1739157034954,-500.0,0.00010958,2]
[352536491,1739157034964,-500.0,0.00010958,2]
[352536492,1739157034974,-500.0,0.00010958,2]
[352536493,1739157034988,-500.0,0.00010958,2]
[352536494,1739157034998,-500.0,0.00010958,2]
[352536495,1739157035009,-500.0,0.00010958,2]
[352536496,1739157035019,-500.0,0.00010958,2]
[352536497,1739157035029,-500.0,0.00010958,2]
[352536498,1739157035046,-500.0,0.00010958,2]
[352536499,1739157035055,-500.0,0.00010958,2]
[352536500,1739157035067,-500.0,0.00010958,2]
[352536501,1739157035077,-500.0,0.00010958,2]
[352536502,1739157035089,-500.0,0.00010958,2]
[352536503,1739157035099,-500.0,0.00010958,2]
[352536504,1739157035109,-500.0,0.00010958,2]
[352536505,1739157035120,-500.0,0.00010958,2]
[352536506,1739157035130,-500.0,0.00010958,2]
[352536507,1739157035140,-500.0,0.00010958,2]
[352536508,1739157035150,-500.0,0.00010958,2]
[352536509,1739157035160,-500.0,0.00010958,2]
[352536510,1739157035170,-500.0,0.00010958,2]
[352536511,1739157035180,-501.9566003,0.00010958,2]
[352536512,1739157035190,-500.0,0.00010958,2]
[352536513,1739157035200,-500.0,0.00010958,2]
[352536514,1739157035210,-501.94832408,0.00010958,2]
[352536515,1739157035219,-628.51,0.00010958,2]
[352536516,1739157035229,-500.0,0.00010958,2]
[352536517,1739157035239,-500.0,0.00010958,2]
[352536518,1739157035249,-500.0,0.00010958,2]
[352536519,1739157035260,-500.0,0.00010958,2]
[352536520,1739157035270,-500.0,0.00010958,2]
[352536521,1739157035279,-500.0,0.00010958,2]
[352536522,1739157035289,-500.0,0.00010958,2]
[352536523,1739157035298,-500.0,0.00010958,2]
[352536524,1739157035309,-500.0,0.00010958,2]
[352536525,1739157035320,-500.0,0.00010958,2]
[352536526,1739157035329,-500.0,0.00010958,2]
[352536527,1739157035423,-500.0,0.00010958,2]
[352536528,1739157035432,-500.0,0.00010958,2]
[352536529,1739157035443,-500.0,0.00010958,2]
[352536530,1739157035453,-501.2548056,0.00010958,2]
[352536531,1739157035463,-501.90534414,0.00010958,2]
[352536532,1739157035472,-500.0,0.00010958,2]
[352536533,1739157035482,-500.0,0.00010958,2]
[352536534,1739157035492,-500.0,0.00010958,2]
[352536535,1739157035502,-500.0,0.00010958,2]
[352536536,1739157035513,-500.0,0.00010958,2]
[352536537,1739157035524,-355.03631126,0.00010958,2]
[352536538,1739157035534,-501.14792985,0.00010958,2]
[352536539,1739157035544,-500.0,0.00010958,2]
[352536540,1739157035554,-500.0,0.00010958,2]
[352536541,1739157035566,-500.0,0.00010958,2]
[352536542,1739157035576,-500.0,0.00010958,2]
[352536543,1739157035586,-501.27133431,0.00010958,2]
[352536544,1739157035596,-501.41883141,0.00010958,2]
[352536545,1739157035607,-500.0,0.00010958,2]
[352536546,1739157035618,-501.06201161,0.00010958,2]
[352536547,1739157035628,-500.0,0.00010958,2]
[352536548,1739157035639,-569.79978666,0.00010958,2]
[352536549,1739157035649,-500.0,0.00010958,2]
[352536550,1739157035659,-500.0,0.00010958,2]
[352536551,1739157035669,-500.0,0.00010958,2]
[352536552,1739157035679,-500.0,0.00010958,2]
[352536553,1739157035690,-500.0,0.00010958,2]
[352536554,1739157035699,-500.0,0.00010958,2]
[352536555,1739157035710,-500.0,0.00010958,2]
[352536556,1739157035720,-500.0,0.00010958,2]
[352536557,1739157035729,-500.0,0.00010958,2]
[352536558,1739157035739,-500.0,0.00010958,2]
[352536559,1739157035750,-500.0,0.00010958,2]
[352536560,1739157035760,-500.0,0.00010958,2]
[352536561,1739157035769,-500.0,0.00010958,2]
[352536562,1739157035779,-500.0,0.00010958,2]
[352536563,1739157035790,-500.0,0.00010958,2]
[352536564,1739157035800,-500.0,0.00010958,2]
[352536565,1739157035815,-202.81255018,0.00010958,2]
[352536566,1739157035825,-500.0,0.00010958,2]
[352536567,1739157035835,-500.0,0.00010958,2]
[352536568,1739157035846,-500.0,0.00010958,2]
[352536569,1739157035855,-500.0,0.00010958,2]
[352536570,1739157035865,-500.0,0.00010958,2]
[352536571,1739157035876,-500.88524389,0.00010958,2]
[352536572,1739157035886,-500.0,0.00010958,2]
[352536573,1739157035899,-500.0,0.00010958,2]
[352536574,1739157035909,-500.90193467,0.00010958,2]
[352536575,1739157035920,-500.0,0.00010958,2]
[352536576,1739157035931,-500.0,0.00010958,2]
[352536577,1739157035941,-500.0,0.00010958,2]
[352536578,1739157035951,-673.68,0.00010958,2]
[352536579,1739157035963,-500.0,0.00010958,2]
[352536580,1739157035974,-550.35107339,0.00010958,2]
[352536581,1739157035984,-500.0,0.00010958,2]
[352536582,1739157035993,-503.31370967,0.00010958,2]
[352536583,1739157036003,-501.17710207,0.00010958,2]
[352536584,1739157036013,-500.0,0.00010958,2]
[352536585,1739157036023,-503.35397907,0.00010958,2]
[352536586,1739157036033,-500.0,0.00010958,2]
[352536587,1739157036042,-500.0,0.00010958,2]
[352536588,1739157036052,-500.4058444,0.00010958,2]
[352536589,1739157036062,-500.0,0.00010958,2]
[352536590,1739157036073,-500.0,0.00010958,2]
[352536591,1739157036082,-538.69189271,0.00010958,2]
[352536592,1739157036092,-500.0,0.00010958,2]
[352536593,1739157036101,-502.47756503,0.00010958,2]
[352536594,1739157036110,-500.0,0.00010958,2]
[352536595,1739157036119,-500.0,0.00010958,2]
[352536596,1739157036128,-500.0,0.00010958,2]
[352536597,1739157036137,-500.0,0.00010958,2]
[352536598,1739157036147,-492.40317415,0.00010958,2]
[352536599,1739157036156,-500.0,0.00010958,2]
[352536600,1739157036165,-500.0,0.00010958,2]
[352536601,1739157036174,-500.0,0.00010958,2]
[352536602,1739157036183,-502.89054731,0.00010958,2]
[352536603,1739157036192,-500.0,0.00010958,2]
[352536604,1739157036201,-505.36910966,0.00010958,2]
[352536605,1739157036210,-500.0,0.00010958,2]
[352536606,1739157036220,-501.60304935,0.00010958,2]
[352536607,1739157036229,-500.0,0.00010958,2]
[352536608,1739157036239,-500.0,0.00010958,2]
[352536609,1739157036248,-500.0,0.00010958,2]
[352536610,1739157036257,-501.18717933,0.00010958,2]
[352536611,1739157036267,-500.0,0.00010958,2]
[352536612,1739157036277,-500.0,0.00010958,2]
[352536613,1739157036287,-500.0,0.00010958,2]
[352536614,1739157036296,-500.0,0.00010958,2]
[352536615,1739157036306,-500.0,0.00010958,2]
[352536616,1739157036317,-500.74147031,0.00010958,2]
[352536617,1739157036327,-500.0,0.00010958,2]
[352536618,1739157036337,-542.43,0.00010958,2]
[352536619,1739157036350,-500.0,0.00010958,2]
[352536620,1739157036364,-500.0,0.00010958,2]
[352536621,1739157036378,-500.0,0.00010958,2]
[352536622,1739157036391,-500.0,0.00010958,2]
[352536623,1739157036403,-502.07131007,0.00010958,2]
[352536624,1739157036416,-519.66808083,0.00010958,2]
[352536625,1739157036428,-500.0,0.00010958,2]
[352536626,1739157036442,-500.0,0.00010958,2]
[352536627,1739157036455,-500.0,0.00010958,2]
[352536628,1739157036468,-500.0,0.00010958,2]
[352536629,1739157036482,-503.93765131,0.00010958,2]
[352536630,1739157036495,-500.0,0.00010958,2]
[352536631,1739157036509,-500.0,0.00010958,2]
[352536632,1739157036522,-1093.78,0.00010958,2]
[352536633,1739157036535,-500.0,0.00010958,2]
[352536634,1739157036547,-504.02758117,0.00010958,2]
[352536635,1739157036562,-500.0,0.00010958,2]
[352536636,1739157036575,-502.79603949,0.00010958,2]
[352536637,1739157036588,-500.0,0.00010958,2]
[352536638,1739157036599,-500.0,0.00010958,2]
[352536639,1739157036610,-500.0,0.00010958,2]
[352536640,1739157036623,-506.79070446,0.00010958,2]
[352536641,1739157036635,-500.86988166,0.00010958,2]
[352536642,1739157036648,-501.11987137,0.00010958,2]
[352536643,1739157036663,-500.0,0.00010958,2]
[352536644,1739157036677,-500.0,0.00010958,2]
[352536645,1739157036691,-500.7602835,0.00010958,2]
[352536646,1739157036704,-500.0,0.00010958,2]
[352536647,1739157036717,-500.0,0.00010958,2]
[352536648,1739157036730,-500.0,0.00010958,2]
[352536649,1739157036740,-500.76658816,0.00010958,2]